Cogmind - Beta 16 @@@ ROGUE MODE // 2026.01.03 @ 17:04:50 Player: leto Result: Destroyed by G-47 Trooper with Particle Gun Performance ------------- Evolutions (2) 1000 Regions Visited (5) 1000 Robots Destroyed (115) 575 Value Destroyed (2650) 2650 Prototype IDs (15) 300 Alien Tech Used (0) 0 Bonus (300) 300 TOTAL SCORE: 5825 Bonus ------- Aligned with FarCom 300 Cogmind --------- Core Integrity 0/550 Matter 276/300 Energy 265/265 System Corruption 16% Temperature Cool (18) Movement Treading (162) Location -8/Materials Parts ------- > --- POWER (1) -------- Improved Ion Engine > --- PROPULSION (4) --- Light Treads Light Treads Light Treads Armored Treads > --- UTILITY (4) ------ High-capacity Storage Unit Medium Armor Plating Medium Armor Plating Trap Extractor (0/4) > --- WEAPON (2) ------- Heavy Assault Rifle Katana > --- INVENTORY (20) --- Reinforced Ion Engine Wheel Cesium-ion Thruster Cesium-ion Thruster Improved VTOL Module Improved VTOL Module Xenon Bombardment Thruster Xenon Bombardment Thruster Xenon Bombardment Thruster Cryofiber Web Hacking Suite Hacking Suite Rocket Launcher Rocket Launcher Rocket Launcher Missile Launcher Missile Launcher Datajack Improved Datajack Improved Datajack Peak State ------------ > --- POWER ------------ Ion Engine > --- PROPULSION ------- Wheel > --- UTILITY ---------- High-capacity Storage Unit High-capacity Storage Unit Experimental Sensor Array Trap Reconfigurator > --- WEAPON ----------- Particle Gun Particle Gun > --- INVENTORY -------- Light Nuclear Core Improved Hover Unit Improved Hover Unit Improved Hover Unit Improved Hover Unit VTOL Module Xenon Bombardment Thruster Xenon Bombardment Thruster Xenon Bombardment Thruster Xenon Bombardment Thruster Small Storage Unit Large Storage Unit Large Storage Unit Rocket Launcher Datajack Improved Datajack Power Maul [Rating: 30] Favorites ----------- Power Ion Engine Engine Ion Engine Power Core Light Nuclear Core Propulsion Light Treads Treads Light Treads Wheel Wheel Utility High-capacity Storage Unit Device Trap Reconfigurator Storage High-capacity Storage Unit Processor Advanced Targeting Computer Protection Hardened Light Armor Plating Weapon Medium Laser Energy Gun Medium Laser Ballistic Gun Heavy Assault Rifle Ballistic Cannon Improved Light Cannon Launcher Rocket Launcher Impact Weapon Power Maul Slashing Weapon Katana Special Melee Weapon Datajack Build | -11 -10 -10 -10 -9 -8 ------- Run | Yrd Mat Min Exi Min Mat Slots Evolved 4 | . . . . . 4 Power . | . . . . . . Propulsion 2 | . . . . . 2 Utility 2 | . . . . . 2 Weapon . | . . . . . . Parts Attached 64 | 7 6 1 3 8 39 Power 8 | 1 2 . . 2 3 Engine 7 | 1 2 . . 2 2 Core 1 | . . . . . 1 Reactor . | . . . . . . Propulsion 19 | 2 . 1 . 3 13 Treads 10 | 2 . 1 . . 7 Leg . | . . . . . . Wheel 9 | . . . . 3 6 Hover . | . . . . . . Flight . | . . . . . . Utility 15 | 2 3 . 2 . 8 Device 4 | . . . . . 4 Storage 7 | 2 3 . 2 . . Processor 1 | . . . . . 1 Hackware . | . . . . . . Protection 3 | . . . . . 3 Artifact . | . . . . . . Weapon 22 | 2 1 . 1 3 15 Energy Gun 11 | 2 1 . . 1 7 Energy Cannon . | . . . . . . Ballistic Gun 5 | . . . . 2 3 Ballistic Cannon 1 | . . . . . 1 Launcher 1 | . . . . . 1 Special Weapon . | . . . . . . Impact Weapon 2 | . . . . . 2 Slashing Weapon 1 | . . . . . 1 Piercing Weapon . | . . . . . . Special Melee Weapon 1 | . . . 1 . . Unidentified Prototypes 2 | . . . . . 2 Corrupted Parts 2 | . . . . . 2 System Corruption 14 | . . . . . 14 Parts Lost 26 | . 1 1 . 8 16 Power 4 | . . . . 2 2 Propulsion 11 | . . 1 . 3 7 Utility 3 | . . . . . 3 Weapon 8 | . 1 . . 3 4 Highest Loss Streak 4 | . 1 1 . 4 4 To Critical Strikes 1 | . . 1 . . . Average Backups 14 | . 7 10 13 16 18 Power . | . . 2 2 . . Propulsion 6 | . 4 4 5 5 7 Utility 3 | . . 2 3 5 3 Weapon 3 | . 1 1 2 4 4 Tool/Special . | . . . . . . Unused Backups 35 | . 7 . . . 28 Power 1 | . . . . . 1 Propulsion 20 | . 6 . . . 14 Utility 3 | . . . . . 3 Weapon 8 | . . . . . 8 Tool/Special 3 | . 1 . . . 2 Average Slot Usage (%) 89 | . 99 100 86 89 84 Engine 10 | . 14 14 14 13 6 Treads 18 | . 28 28 28 13 11 Wheel 6 | . . . . 6 11 Device 3 | . . . . . 8 Storage 22 | . 28 28 28 28 15 Processor 1 | . . . . . 4 Protection 2 | . . . . . 6 Energy Gun 13 | . 27 28 1 26 5 Ballistic Gun 2 | . . . . . 4 Impact Weapon 2 | . . . . . 4 Special Melee Weapon 2 | . . . 13 . . Peak Build Rating 30 | 7 8 8 8 11 30 Average Rating 15 | 5 7 7 7 9 24 On Entrance 7 | . 7 8 8 8 11 Avg Prop Armor Cover (%) 11 | . . . . 13 9 Naked Turns . | . . . . . . Heaviest Build 98 | 19 49 49 86 89 98 Greatest Support 80 | 40 40 40 40 20 80 Greatest Overweight (x) 30 | . 1 1 2 8 30 Average Overweight (x) 2 | . . 1 1 6 3 Largest Inventory Capacity 20 | 8 15 15 20 20 20 Average Capacity 17 | 7 10 15 16 20 20 Most Carried 20 | . 11 11 15 18 20 Average Carried 14 | . 7 10 13 16 18 Final Capacity 20 | 8 15 15 20 20 20 Final Carried 20 | . 11 11 15 16 20 Class Distribution -------------------- 73% | Mutant 11% | Scavenger-Mutant 8% | Skirmisher 6% | Scavenger-Skirmisher Dominant Class ---------------- Mutant | -10/Materials Mutant | -10/Mines Mutant | -10/Exiles Mutant | -9/Mines Mutant | -8/Materials Resources | -11 -10 -10 -10 -9 -8 ----------- Run | Yrd Mat Min Exi Min Mat Matter Collected 1276 | 182 148 10 . 154 782 Remotely 43 | . . . . . 43 Salvage Created 3887 | 72 1112 65 . 548 2090 Parts 177 | 2 58 6 . 38 73 Haulers Intercepted 7 | . 2 . . . 5 Recyclers Shooed 5 | . 2 1 . . 2 Parts Field Recycled . | . . . . . . Retrieved Matter . | . . . . . . Parts Self-Destructed . | . . . . . . Prevented . | . . . . . . Parts Restored . | . . . . . . Kills | -11 -10 -10 -10 -9 -8 ------- Run | Yrd Mat Min Exi Min Mat Combat Hostiles Destroyed 69 | . 20 3 . 16 30 Melee 10 | . . . . . 10 Guns 44 | . 18 3 . 16 7 AOE 6 | . 2 . . . 4 Classes Destroyed 12 | 1 7 . . 1 3 Worker 21 | . 3 1 . 4 13 Builder 4 | . 1 . . 2 1 Tunneler 1 | . . . . . 1 Hauler 7 | . 2 . . . 5 Recycler 5 | 1 1 . . . 3 Operator 5 | . 3 . . . 2 Watcher 4 | . 3 . . . 1 Swarmer 16 | . 5 3 . 8 . Grunt 45 | . 15 . . 7 23 Sentry 6 | . . . . . 6 Hunter 1 | . . . . . 1 Assembled 1 | . . . . 1 . Best Kill Streak 7 | 1 4 3 . 5 7 Combat Bots Only 5 | . 4 3 . 5 4 Max Kills in Single Turn 2 | 1 2 1 . 1 2 Gunslinging . | . . . . . . Exploded 2 | . 1 . . . 2 Melee 1 | . . . . . 1 Uniques/NPCs Destroyed . | . . . . . . Combat | -11 -10 -10 -10 -9 -8 -------- Run | Yrd Mat Min Exi Min Mat Hostile Shots Fired 399 | . 71 13 . 85 230 Missed 94 | . 16 3 . 17 58 Hits 305 | . 55 10 . 68 172 Melee 3 | . . . . 3 . Projectile 302 | . 55 10 . 65 172 Critical Strikes 10 | . 2 1 . . 7 Damage Taken 4170 | . 613 82 . 732 2743 Core 749 | . 79 7 . 107 556 Absorbed by Shields . | . . . . . . Core Remaining (%) 61 | 100 . . . 22 . Volleys Fired 249 | 2 92 9 . 54 92 Largest 2 | 2 2 2 . 2 2 Hottest 100 | 90 100 100 . 100 100 Shots Fired 410 | 4 168 18 . 92 128 Gun 388 | 4 168 18 . 92 106 Cannon 12 | . . . . . 12 Launcher 10 | . . . . . 10 Special . | . . . . . . Kinetic 68 | . . . . 8 60 Thermal 298 | 2 142 18 . 84 52 Explosive 10 | . . . . . 10 Electromagnetic 34 | 2 26 . . . 6 Robot Hit Streak 15 | 4 8 2 . 12 15 Robot Miss Streak 7 | . 4 2 . 2 7 Penetration Max . | . . . . . . Secondary Targets 6 | . 1 2 . 3 . Max Gunslinging Chain 1 | . 1 1 . 1 . Shots Hit Robots 346 | 4 106 8 9 63 156 Core Hits 154 | 2 55 5 . 31 61 Critical Kills 3 | . . . . . 3 Critical Parts Destroyed 15 | . . . . . 15 Critical Strikes 46 | . 12 2 . 6 26 Burn 24 | . 11 2 . 6 5 Corrupt 1 | . 1 . . . . Smash 18 | . . . . . 18 Sever 3 | . . . . . 3 Melee Attacks 117 | . . . 9 . 108 Impact 78 | . . . . . 78 Slashing 30 | . . . . . 30 Piercing . | . . . . . . Sneak Attacks 32 | . . . 7 . 25 Combat Hostiles . | . . . . . . Follow-up Attacks 2 | . . . . . 2 Damage Inflicted 8326 | 50 1459 105 . 852 5860 Guns 3379 | 50 1358 99 . 852 1020 Cannons 170 | . . . . . 170 Explosions 653 | . 92 . . . 561 Melee 4109 | . . . . . 4109 Ramming 15 | . 9 6 . . . Kinetic 752 | . . . . 73 679 Thermal 2539 | 25 1197 99 . 779 439 Explosive 561 | . . . . . 561 Electromagnetic 350 | 25 253 . . . 72 Impact 3355 | . . . . . 3355 Slashing 754 | . . . . . 754 Piercing . | . . . . . . Highest Corruption 16 | . . . . 4 16 Average Corruption 14 | . . . . 4 14 Corruption Purged . | . . . . . . Corruption Blocked . | . . . . . . Effects 80 | . . . . 2 78 Message Errors 21 | . . . . 1 20 Matter Fused 14 | . . . . . 14 Heat Flow Errors 10 | . . . . . 10 Energy Discharges 11 | . . . . . 11 Data Loss (minor) 11 | . . . . . 11 Data Loss (major) 5 | . . . . . 5 Misfires 2 | . . . . . 2 Alerts 5 | . . . . 1 4 Misdirections 1 | . . . . . 1 Overload Shots . | . . . . . . Overflow Damage 1688 | . 2 . . . 1686 Projectiles . | . . . . . . Explosions 18 | . 2 . . . 16 Melee 1670 | . . . . . 1670 Knockbacks 11 | . . . . . 11 Impact 7 | . . . . . 7 Kinetic 4 | . . . . . 4 Secondary . | . . . . . . Self-Inflicted Damage 55 | . 25 . . . 30 Shots 2 | . 1 . . . 1 Rammed 6 | . 4 2 . . . Targets Rammed 6 | . 4 2 . . . Kicked . | . . . . . . Crushed . | . . . . . . Highest Temperature 415 | 60 270 195 . 415 269 Average Temperature 91 | 30 77 72 . 151 69 Received Heat Transfer 1932 | . 297 . . 213 1422 Effects 8 | . 1 . . 2 5 Shutdowns 1 | . . . . 1 . Interference 6 | . 1 . . . 5 Damage (minor) 1 | . . . . 1 . Siege Activations . | . . . . . . Martial Activations . | . . . . . . Shielding Activations . | . . . . . . Robots Disrupted . | . . . . . . Combat Hostiles . | . . . . . . Robots Corrupted 14 | . . . . . 14 Combat Hostiles 9 | . . . . . 9 Parts Fried 20 | . 1 . . . 19 Impact Corruptions 49 | . . . . . 49 Robots Melted . | . . . . . . Combat Hostiles . | . . . . . . Parts Melted 20 | . 9 1 . 7 3 Heat Transferred 9178 | 74 4257 444 . 2738 1665 Parts Sabotaged . | . . . . . . Parts Stolen . | . . . . . . Parts Stripped . | . . . . . . Power Chain Reactions 2 | . 2 . . . . Alert | -11 -10 -10 -10 -9 -8 ------- Run | Yrd Mat Min Exi Min Mat Maximum Alert Level 2 | . 1 . . . 2 Low Security (%) 84 | 100 96 100 . 100 71 Level 1 15 | . 3 . . . 27 Level 2 . | . . . . . . Level 3 . | . . . . . . Level 4 . | . . . . . . Level 5 . | . . . . . . High Security . | . . . . . . Max Security . | . . . . . . Peak Influence 411 | 5 210 60 . 90 411 Initial 6 | . . 3 . . 6 Average 73 | . 36 6 . 15 118 Influence Increases 2171 | 5 679 75 . 365 1047 Destroy 0b10 Robot/C 1360 | . 400 60 . 300 600 Destroy 0b10 Robot/NC 235 | 5 65 5 . 30 130 Destroy Leader 292 | . 100 10 . 30 152 Successful Hack 27 | . 9 . . 5 13 Disable Machine 60 | . . . . . 60 Destroy Structure 77 | . 15 . . . 62 Lose Combat Pursuer 120 | . 90 . . . 30 Influence Decreases 1760 | 5 670 84 . 347 654 Entered New Map 18 | . . 6 . . 12 Time Decay 1229 | 5 460 68 . 277 419 Lost Part 196 | . 10 10 . 70 106 Purge Threat 317 | . 200 . . . 117 Squads Dispatched 9 | . 5 . . . 4 Investigation 5 | . 3 . . . 2 Extermination . | . . . . . . Reinforcement 4 | . 2 . . . 2 Assault . | . . . . . . Garrison . | . . . . . . Intercept . | . . . . . . Searches Triggered . | . . . . . . Construction Impeded . | . . . . . . Haulers Reinforced . | . . . . . . Active Scanning Responses . | . . . . . . Cargo Convoy Interrupts . | . . . . . . Stealth | -11 -10 -10 -10 -9 -8 --------- Run | Yrd Mat Min Exi Min Mat Distress Signals 5 | . 1 . . . 4 Communications Jammed . | . . . . . . Distress Signals . | . . . . . . Times Spotted 107 | . 36 3 . 16 52 Peak Tracking Total 5 | . 4 3 . 4 5 Tactical Retreats 7 | . 4 . . 1 2 Traps | -11 -10 -10 -10 -9 -8 ------- Run | Yrd Mat Min Exi Min Mat Traps Triggered 4 | . . . . . 4 Indirectly . | . . . . . . Trap Hack Attempts . | . . . . . . Triggered . | . . . . . . Disarmed . | . . . . . . Reprogrammed . | . . . . . . Reused . | . . . . . . Traps Reconfigurated 1 | . . . . . 1 Traps Extracted . | . . . . . . Installed . | . . . . . . Triggered . | . . . . . . Machines | -11 -10 -10 -10 -9 -8 ---------- Run | Yrd Mat Min Exi Min Mat Machines Disabled 4 | . . . . . 4 Max in Single Turn 1 | . . . . . 1 Machines Repaired . | . . . . . . Machines Dismantled . | . . . . . . Machines Sabotaged . | . . . . . . Overloaded Fab Kills . | . . . . . . Hacking | -11 -10 -10 -10 -9 -8 --------- Run | Yrd Mat Min Exi Min Mat Machines Accessed 19 | . 7 . . 1 11 Terminals 14 | . 6 . . 1 7 Fabricators . | . . . . . . Repair Stations . | . . . . . . Recycling Units 3 | . 1 . . . 2 Scanalyzers 2 | . . . . . 2 Garrison Access . | . . . . . . Total Hacks 48 | . 18 . . 2 28 Successful 23 | . 9 . . 1 13 Failed 25 | . 9 . . 1 15 Catastrophic 2 | . . . . . 2 Database Lockouts . | . . . . . . Manual 37 | . 14 . 1 2 20 Terminals 38 | . 15 . . 2 21 Fabricators . | . . . . . . Repair Stations . | . . . . . . Recycling Units 5 | . 3 . . . 2 Scanalyzers 5 | . . . . . 5 Garrison Access . | . . . . . . Terminal Hacks 4 | . 2 . . . 2 Alert Level 1 | . . . . . 1 Unreport Threat 3 | . 2 . . . 1 Fabricator Hacks . | . . . . . . Repair Station Hacks . | . . . . . . Recycling Unit Hacks 3 | . 2 . . . 1 Retrieve Components 3 | . 2 . . . 1 Scanalyzer 5 | . . . . . 5 Insert Component 2 | . . . . . 2 Analyze 1 | . . . . . 1 Retrieve Study 2 | . . . . . 2 Garrison Access Hacks . | . . . . . . Unauthorized Hacks 11 | . 5 . . 1 5 Terminals 11 | . 5 . . 1 5 Botnet 9 | . 4 . . 1 4 Operators 2 | . 1 . . . 1 Fabricators . | . . . . . . Repair Stations . | . . . . . . Recycling Units . | . . . . . . Scanalyzers . | . . . . . . Garrison Access . | . . . . . . Data Cores Recovered 1 | . 1 . . . . Used . | . . . . . . Hacking Detections 14 | . 5 . . 1 8 Full Trace Events 6 | . 2 . . . 4 Feedback Events . | . . . . . . Feedback Blocked . | . . . . . . Robot Schematics Acquired . | . . . . . . Robots Built . | . . . . . . Authchips . | . . . . . . Time . | . . . . . . Total Robot Build Rating . | . . . . . . Part Schematics Acquired 1 | . . . . . 1 Parts Built . | . . . . . . Authchips . | . . . . . . Time . | . . . . . . Total Part Build Rating . | . . . . . . Part Studies Acquired 1 | . . . . . 1 Parts Repaired . | . . . . . . Time . | . . . . . . Parts Recycled . | . . . . . . Recycled Matter . | . . . . . . Retrieved Matter . | . . . . . . Retrieved Components 10 | . 1 . . . 9 Parts Scanalyzed 1 | . . . . . 1 Part Schematics Acquired 1 | . . . . . 1 Parts Damaged 1 | . . . . . 1 Bothacking | -11 -10 -10 -10 -9 -8 ------------ Run | Yrd Mat Min Exi Min Mat Used RIF Installer . | . . . . . . Robots Hacked 5 | . . . 5 . . Non-combat 2 | . . . 2 . . Combat 3 | . . . 3 . . Robot Hacks Applied 5 | . . . 5 . . parse_system 5 | . . . 5 . . Relay Couplers Released . | . . . . . . Fabnet Peak Effective % . | . . . . . . Robots Rewired . | . . . . . . Allies Hacked . | . . . . . . Hacks Repelled . | . . . . . . Allies | -11 -10 -10 -10 -9 -8 -------- Run | Yrd Mat Min Exi Min Mat Total Allies 1 | . . 1 . . . Largest Group 1 | . . 1 . . . Highest-Rated Group 31 | . . 31 . . . Highest-Rated Ally 31 | . . 31 . . . Total Orders . | . . . . . . Ally Attacks . | . . . . . . Total Damage . | . . . . . . Kills . | . . . . . . Allies Corrupted . | . . . . . . Allies Melted . | . . . . . . Intel | -11 -10 -10 -10 -9 -8 ------- Run | Yrd Mat Min Exi Min Mat Active Infowar (turns) 1297 | . . . . . 1297 Sensors 1297 | . . . . . 1297 Robot Analysis Total . | . . . . . . Derelict Logs Recovered 2 | . . 1 . 1 . Drone Launches . | . . . . . . Drone Recoveries . | . . . . . . Exploration | -11 -10 -10 -10 -9 -8 ------------- Run | Yrd Mat Min Exi Min Mat Turns Passed 9879 | 73 1729 638 1516 1461 4462 Spaces Moved 3339 | 37 782 252 559 410 1299 Core 8 | 1 . . . . 7 Treads 2334 | 36 782 252 559 163 542 Legs . | . . . . . . Wheels 997 | . . . . 247 750 Hover . | . . . . . . Flight . | . . . . . . Fastest Speed 50 | 50 160 240 240 140 116 Average Speed 216 | 157 174 240 262 308 190 Slowest Speed 1550 | 160 240 240 320 480 1550 Overloaded Moves . | . . . . . . Propulsion Burnouts . | . . . . . . Robots Hopped . | . . . . . . Potential Cave-ins . | . . . . . . Cave-ins Triggered . | . . . . . . Exploration Rate (%) 64 | 5 98 42 92 74 75 Regions Visited 5 Branch Regions 3 Pre-discovered Areas . | . . . . . . Known Exits Taken . | . . . . . . Unknown Exits Taken 5 | 1 1 1 1 1 . Scrap Searched 4 | . . 2 . 2 . Spaces Dug 22 | . . . . . 22 Terrain Destroyed 69 | . 13 . . . 56 Melee 22 | . . . . . 22 Projectile 1 | . . . . . 1 AOE 46 | . 13 . . . 33 Terrain Rammed . | . . . . . . Walls Destroyed . | . . . . . . Machines Disabled . | . . . . . . Actions | -11 -10 -10 -10 -9 -8 --------- Run | Yrd Mat Min Exi Min Mat Total 5380 | 45 981 265 603 514 2972 Wait 1474 | . 71 1 . 31 1371 Move 3334 | 36 781 251 558 409 1299 Hop . | . . . . . . Pick Up 58 | . 17 1 1 8 31 Fast Attach 26 | 7 . . . 3 16 Attach 20 | . 1 1 . 6 12 Detach 3 | . . . 1 . 2 Swap 28 | . 5 . 3 2 18 Drop 38 | . 10 . . 1 27 Fire 249 | 2 92 9 . 54 92 Melee 113 | . . . 9 . 104 Ram . | . . . . . . Kick . | . . . . . . Crush 6 | . 4 2 . . . Escape Stasis . | . . . . . . Rewire 31 | . . . 31 . . Trap . | . . . . . . Miscellaneous . | . . . . . . Route ------- -11/Scrapyard -10/Materials (discovered 6 exits: [*Mat x3] / [*Min x2] / [*Sub]) -10/Mines (discovered 4 exits: [*Mat x2] / *Exi / [*Sub]) -10/Exiles (discovered 2 exits: *Min x2) -9/Mines -8/Materials (discovered 3 exits: [*Fac x3]) History --------- Turn | Location | Event 14 | -11/Scrapyard | Discovered new exit (range 14) 74 | -11/Scrapyard | Entered Materials 180 | -10/Materials | Discovered new exit (range 15) 314 | -10/Materials | Build established: Mutant 568 | -10/Materials | Discovered new exit (range 15) 751 | -10/Materials | Discovered new exit (range 3) 816 | -10/Materials | Discovered new exit (range 9) 868 | -10/Materials | Discovered new exit (range 8) 1399 | -10/Materials | Discovered new exit (range 13) 1803 | -10/Materials | Entered Mines 2023 | -10/Mines | Discovered new exit (range 8) 2031 | -10/Mines | Received a Mining Laser from a helpful Derelict 2045 | -10/Mines | Discovered new exit (range 5) 2191 | -10/Mines | Learned Materials stockpile data 2292 | -10/Mines | Discovered new exit (range 16) 2429 | -10/Mines | Deemed a non-threat by the Exiles lab entrance 2431 | -10/Mines | Discovered new exit (range 5) 2441 | -10/Mines | Entered Exiles 2477 | -10/Exiles | Discovered new exit (range 14) 2537 | -10/Exiles | Met 8R-AWN 2587 | -10/Exiles | Met EX-HEX 2711 | -10/Exiles | Met EX-BIN 2745 | -10/Exiles | Aligned with FarCom system 2747 | -10/Exiles | Given EX-Vault access code 2816 | -10/Exiles | Opened EX-Vault 2828 | -10/Exiles | Found Prototype Device 2877 | -10/Exiles | Warned to stay clear of 0b10 Research branches 2963 | -10/Exiles | Met EX-DEC 3047 | -10/Exiles | Visited The Gauntlet 3931 | -10/Exiles | Discovered new exit (range 10) 3957 | -10/Exiles | Left Exiles lab with Trap Reconfigurator 3957 | -10/Exiles | Entered Mines 4376 | -9/Mines | Core integrity fell below 50% 4458 | -9/Mines | Received a Rocket Launcher from a helpful Derelict 4516 | -9/Mines | Learned Materials stockpile data 4604 | -9/Mines | Found a damaged Exp. Sensor Array with a note attached 4613 | -9/Mines | Found Prototype Device 4989 | -9/Mines | Discovered new exit (range 12) 5280 | -9/Mines | Excavation squad dispatched 5280 | -9/Mines | A large section of the Mines collapsed 5387 | -9/Mines | Lost 4 parts (1p1n2w) 5418 | -9/Mines | Entered Materials 5418 | -8/Materials | Evolved 4 slots: Propulsion x2, Utility x2 5535 | -8/Materials | Identified Exp. Sensor Array 5536 | -8/Materials | Identified Trap Reconfigurator 5743 | -8/Materials | Lost 3 parts (1n2w) 5829 | -8/Materials | Build established: Scavenger-Skirmisher 6127 | -8/Materials | Discovered new exit (range 3) 6441 | -8/Materials | Build established: Skirmisher 6930 | -8/Materials | Core integrity fell below 50% 6979 | -8/Materials | Lost 4 parts (1n1u2w) 7234 | -8/Materials | Build established: Mutant 7731 | -8/Materials | Core integrity fell below 20% 7772 | -8/Materials | Discovered new exit (range 12) 8138 | -8/Materials | System corruption reached 10% 9436 | -8/Materials | Build established: Scavenger-Mutant 9667 | -8/Materials | Discovered new exit (range 10) 9880 | -8/Materials | Destroyed by G-47 Trooper with Particle Gun Last Messages --------------- Med. Laser Lgt. Treads Dropped Lgt. Treads. System corrupted: Substantial component data lost. Sneak attack on A-02 Transporter. A-02 Transporter Ion Engine severed. R-06 Scavenger collects Heat Sink. System corrupted: Component data lost. A-02 Transporter destroyed. W-25 Informer sends out distress signal. Acquired 31 matter. System corrupted: Matter fused (-5). Acquired 5 matter. C-30 ARC bursts open, deploying its payload. G-50 Soldier unfolds itself. G-47 Trooper unfolds itself. G-47 Trooper destroyed. K-01 Serf collects debris. K-01 Serf destroyed. Map ----- +----------------------------------------------------+ | ????????????#######?????## ######## #!!! #### | | ?????????????????????????# # # #!! ! #??# | | ?????????????????????????# # !!!# #!! #??# | | ?????????????????????????#[[ + !!/# ########??# | | ?????????????????????????#%[!# !!/# #?????????# | | ????????!????????????????#[! # # #?????????# | | ?????????????????????????# # # #?????????# | | ?????????????????????????# ######## #?????????# | | ?????????????????????????#* # """ # ########### | | ?????????????????????????# # "Y"[# =%= | | ?????????????????????????# + [[=*+ === % | | ??????????????????######?# # [=[!######### "% | | ??????????????????# #?# # #???????# "" | | ??????????????????#*** #?# # #??????## "" | | ??????????????????#** #?# ################ | | ??????????????????#** #?# ## ! # | | ??????????????????# #?# ## "" # "" | | ??????????????????# #?# ## "T """ """ # "" | | ??????????????????# ! #?# ## "" """ """ # "" | | ??????????????????+ #?# ## """ """ # | | ??????????????????? ### ## # | | ?????????????????####+### #####+######### "" | | ?????????????????# %gm ^ "" | | ?????????????????# % g T " | | ?????????????????# %=%! % ^ | | ?????????????????# % ####@% ####### ^ | | ?????????????????# ##### % ##????## | | ?????????????????# %#???# #?????########### | | ????????########## %#???# #?????# #% | | ????????# # #???# #?????# # | | ????????# # #???# #?????# %+ | | ????????# #w #???# +?????# # | | ????????# # ##### #??"" + """ """%# | | ????????# # #####?????# """ """[# | | ????????# # #?????????# """ """%# | | ######### + """ #?????????# % [# | | + ! = # """ #?????????########### | | ######### ! # """ #??????????# + | | ??????############ """ #??????????# ! # | | ??????# ! # """ !#??????????# !! # | | ##????# [ # ##?????????# !! # % | | ?????# + #?????????# ## ## | | "?????# # """ ! ########??# """ ## #? | | ""????# """ " " # """ ## #??# """ ##%#? | | ""????# """ "R" # """ ## #??# """ ## #? | | ""????# """ """ # """ ## #??# ## #? | | ""????# # """ ## #??########### #? | | ""????########### [ ## ###########??# #? | | ""??????????????# ##! ## #??# #? | | #???######### ## ] ## "" #??# #? | +----------------------------------------------------+ Best States ------------- Heat Dissipation 31 Energy Generation 14 Energy Capacity 265 Matter Stores 300 Matter Capacity 300 Sight Range 16 Robot Scan Range 20 Terrain Scan Density 10 Armor Coverage 450 Evasion (%) 40 Targeting Accuracy 8 Recoil Reduction 4 Trap Extractor Capacity 4 Item Schematics ----------------- Xenon Bombardment Thruster | -8/Materials | Scanalyzed Robot Schematics ------------------ None Fabricated ------------ Nothing Repaired ---------- Nothing Studied --------- Cesium-ion Thruster | -8/Materials | Hacked Alien Tech Used ----------------- None Achievements -------------- Analysis Probe Hey, That's Mine! Item+ Part-time Excavator Sixth Sense System Compromised root@ Challenges ------------ None Game ------ Seed ZipShieldThermoblaster Manual? 0 Play Time 00:54:38 Cumulative 2.4 hours Start 2026.01.03 @ 16:07:04 End 2026.01.03 @ 17:04:50 Sessions 2 Manual Loads 0 Difficulty Rogue Special Mode None Game No. 4 Rogue 4 Adventurer 0 Explorer 0 Win Type - Total 0 Types 0/0/0/0/0/0/0/0/0/0 Lore% 2 Gallery% 7 Achievement% 8 Wizard Run 0 Options --------- Layout 1 ASCII 0 Keyboard 1 Movement Vi Keybinds 0 Fullscreen 1 Font 24/Smallcaps Map View 50x35 Zoom Use 0% Tactical HUD 0 Map Filters NONE Filters NONE Steam 1 RUN: 4baae5cb-c70a-476a-99bb-1c38b5d5f1db